[Event "Titled Tuesday Blitz February 15 Early 2022"]
[White "Sanal, Vahap"]
[Black "Atakhan, Abtin"]
[WhiteFideId "6300545"]
[BlackFideId "22502203"]
[WhiteElo "2603"]
[BlackElo "2119"]
[Result "1-0"]
[Round "11"]
[TimeControl "180+1"]
[Date "2022.02.15"]
[WhiteClock "0:01:03"]
[BlackClock "0:00:06"]

1. e4 {[%clk 0:03:00]}  c6 {[%clk 0:03:00]} 2. d3 {[%clk 0:03:00]}  d5 {[%clk 0:03:00]} 3. Nd2 {[%clk 0:03:00]}  e5 {[%clk 0:03:00]} 4. Ngf3 {[%clk 0:03:00]}  Bd6 {[%clk 0:03:00]} 5. Be2 {[%clk 0:02:59]}  Ne7 {[%clk 0:02:55]} 6. O-O {[%clk 0:02:59]}  O-O {[%clk 0:02:55]} 7. Re1 {[%clk 0:02:59]}  h6 {[%clk 0:02:49]} 8. c3 {[%clk 0:02:58]}  Be6 {[%clk 0:02:48]} 9. Qc2 {[%clk 0:02:58]}  Nd7 {[%clk 0:02:49]} 10. Nf1 {[%clk 0:02:58]}  Qc7 {[%clk 0:02:47]} 11. Ng3 {[%clk 0:02:58]}  Rae8 {[%clk 0:02:43]} 12. Bf1 {[%clk 0:02:58]}  f5 {[%clk 0:02:42]} 13. exf5 {[%clk 0:02:56]}  Nxf5 {[%clk 0:02:43]} 14. Nxf5 {[%clk 0:02:52]}  Bxf5 {[%clk 0:02:43]} 15. g3 {[%clk 0:02:19]}  e4 {[%clk 0:02:43]} 16. Nd4 {[%clk 0:02:16]}  exd3 {[%clk 0:02:41]} 17. Qd1 {[%clk 0:02:16]}  Rxe1 {[%clk 0:02:10]} 18. Qxe1 {[%clk 0:02:14]}  Ne5 {[%clk 0:02:03]} 19. f4 {[%clk 0:02:05]}  Be4 {[%clk 0:01:04]} 20. fxe5 {[%clk 0:02:02]}  Bc5 {[%clk 0:00:53]} 21. Bf4 {[%clk 0:01:37]}  g5 {[%clk 0:00:47]} 22. Be3 {[%clk 0:01:35]}  Bxd4 {[%clk 0:00:41]} 23. cxd4 {[%clk 0:01:33]}  Qf7 {[%clk 0:00:41]} 24. Qd2 {[%clk 0:01:29]}  Qh5 {[%clk 0:00:24]} 25. Bg2 {[%clk 0:01:26]}  Rf3 {[%clk 0:00:24]} 26. Re1 {[%clk 0:01:22]}  Qg4 {[%clk 0:00:18]} 27. e6 {[%clk 0:01:17]}  h5 {[%clk 0:00:10]} 28. e7 {[%clk 0:01:15]}  Kf7 {[%clk 0:00:08]} 29. Bxg5 {[%clk 0:01:12]}  Ke8 {[%clk 0:00:08]} 30. Bf4 {[%clk 0:01:05]}  h4 {[%clk 0:00:07]} 31. h3 {[%clk 0:01:03]}  Qh5 {[%clk 0:00:06]} 32. g4 {[%clk 0:01:03]} 1-0


[Site "https://www.chess.com"]

[Event "Titled Tuesday Blitz February 15 Early 2022"]
[White "Sarana, Alexey"]
[Black "Jobava, Baadur"]
[WhiteFideId "24133795"]
[BlackFideId "13601520"]
[WhiteElo "2665"]
[BlackElo "2617"]
[Result "1/2-1/2"]
[Round "11"]
[TimeControl "180+1"]
[Date "2022.02.15"]
[WhiteClock "0:00:05"]
[BlackClock "0:00:14"]

1. d4 {[%clk 0:03:00]}  d5 {[%clk 0:03:00]} 2. c4 {[%clk 0:02:59]}  c6 {[%clk 0:03:01]} 3. Nf3 {[%clk 0:02:59]}  Nf6 {[%clk 0:03:01]} 4. Nc3 {[%clk 0:02:58]}  dxc4 {[%clk 0:03:01]} 5. a4 {[%clk 0:02:59]}  Bf5 {[%clk 0:03:00]} 6. e3 {[%clk 0:02:58]}  e6 {[%clk 0:02:59]} 7. Bxc4 {[%clk 0:02:58]}  h6 {[%clk 0:03:00]} 8. O-O {[%clk 0:02:57]}  Be7 {[%clk 0:03:00]} 9. Qe2 {[%clk 0:02:57]}  Bh7 {[%clk 0:03:00]} 10. e4 {[%clk 0:02:57]}  O-O {[%clk 0:03:01]} 11. Rd1 {[%clk 0:02:58]}  Re8 {[%clk 0:03:00]} 12. Bf4 {[%clk 0:02:58]}  Bf8 {[%clk 0:02:57]} 13. a5 {[%clk 0:02:55]}  Nbd7 {[%clk 0:02:53]} 14. h3 {[%clk 0:02:55]}  b5 {[%clk 0:02:52]} 15. Bd3 {[%clk 0:02:49]}  a6 {[%clk 0:02:47]} 16. Bh2 {[%clk 0:02:49]}  Qc8 {[%clk 0:02:41]} 17. Rdc1 {[%clk 0:02:32]}  Qb7 {[%clk 0:02:41]} 18. Ne5 {[%clk 0:01:57]}  Rad8 {[%clk 0:02:28]} 19. Nxc6 {[%clk 0:01:22]}  Rc8 {[%clk 0:02:04]} 20. Ne5 {[%clk 0:01:18]}  Bb4 {[%clk 0:01:59]} 21. f3 {[%clk 0:00:54]}  Qa7 {[%clk 0:01:53]} 22. Qf2 {[%clk 0:00:52]}  Nc5 {[%clk 0:01:47]} 23. Bc2 {[%clk 0:00:49]}  Nb7 {[%clk 0:01:43]} 24. Nd3 {[%clk 0:00:39]}  Bxa5 {[%clk 0:01:38]} 25. Nxb5 {[%clk 0:00:36]}  Qb6 {[%clk 0:01:26]} 26. b4 {[%clk 0:00:35]}  Bxb4 {[%clk 0:01:23]} 27. Nxb4 {[%clk 0:00:36]}  axb5 {[%clk 0:01:22]} 28. Bd3 {[%clk 0:00:33]}  Na5 {[%clk 0:01:14]} 29. d5 {[%clk 0:00:20]}  Qxf2+ {[%clk 0:01:15]} 30. Kxf2 {[%clk 0:00:20]}  Rxc1 {[%clk 0:01:15]} 31. Rxc1 {[%clk 0:00:19]}  exd5 {[%clk 0:01:16]} 32. Bxb5 {[%clk 0:00:16]}  Ra8 {[%clk 0:01:07]} 33. e5 {[%clk 0:00:16]}  Nb3 {[%clk 0:00:58]} 34. Re1 {[%clk 0:00:14]}  Nd4 {[%clk 0:00:54]} 35. exf6 {[%clk 0:00:14]}  Nxb5 {[%clk 0:00:54]} 36. Nxd5 {[%clk 0:00:14]}  Bg6 {[%clk 0:00:47]} 37. Be5 {[%clk 0:00:13]}  gxf6 {[%clk 0:00:40]} 38. Nxf6+ {[%clk 0:00:14]}  Kf8 {[%clk 0:00:41]} 39. Re2 {[%clk 0:00:14]}  Rc8 {[%clk 0:00:37]} 40. Rb2 {[%clk 0:00:13]}  Rc2+ {[%clk 0:00:36]} 41. Rxc2 {[%clk 0:00:12]}  Bxc2 {[%clk 0:00:37]} 42. Ng4 {[%clk 0:00:12]}  h5 {[%clk 0:00:37]} 43. Nf6 {[%clk 0:00:12]}  Bg6 {[%clk 0:00:38]} 44. Kg3 {[%clk 0:00:13]}  Ke7 {[%clk 0:00:36]} 45. Kh4 {[%clk 0:00:13]}  Ke6 {[%clk 0:00:37]} 46. Bb2 {[%clk 0:00:13]}  Nd6 {[%clk 0:00:36]} 47. Nxh5 {[%clk 0:00:12]}  Nc4 {[%clk 0:00:36]} 48. Bd4 {[%clk 0:00:11]}  Kd5 {[%clk 0:00:36]} 49. Bf2 {[%clk 0:00:12]}  Ke5 {[%clk 0:00:36]} 50. Bg3+ {[%clk 0:00:09]}  Kf5 {[%clk 0:00:35]} 51. Nf4 {[%clk 0:00:08]}  Ne3 {[%clk 0:00:35]} 52. Bh2 {[%clk 0:00:07]}  Nf1 {[%clk 0:00:32]} 53. g4+ {[%clk 0:00:08]}  Kf6 {[%clk 0:00:31]} 54. Bg3 {[%clk 0:00:08]}  Nd2 {[%clk 0:00:31]} 55. Nd5+ {[%clk 0:00:07]}  Ke6 {[%clk 0:00:31]} 56. Nf4+ {[%clk 0:00:05]}  Kf6 {[%clk 0:00:30]} 57. Nd5+ {[%clk 0:00:05]}  Ke6 {[%clk 0:00:31]} 58. Nc7+ {[%clk 0:00:06]}  Kf6 {[%clk 0:00:25]} 59. Bd6 {[%clk 0:00:06]}  Nxf3+ {[%clk 0:00:25]} 60. Kg3 {[%clk 0:00:06]}  Nd4 {[%clk 0:00:24]} 61. h4 {[%clk 0:00:06]}  Be4 {[%clk 0:00:20]} 62. h5 {[%clk 0:00:06]}  Bc6 {[%clk 0:00:19]} 63. Kf4 {[%clk 0:00:04]}  Ne2+ {[%clk 0:00:13]} 64. Ke3 {[%clk 0:00:04]}  Nc3 {[%clk 0:00:13]} 65. Kd4 {[%clk 0:00:03]}  Nb5+ {[%clk 0:00:11]} 66. Kc5 {[%clk 0:00:02]}  Nxc7 {[%clk 0:00:11]} 67. Kxc6 {[%clk 0:00:02]}  Ne6 {[%clk 0:00:12]} 68. h6 {[%clk 0:00:02]}  Kg6 {[%clk 0:00:12]} 69. Kd5 {[%clk 0:00:03]}  Kxh6 {[%clk 0:00:12]} 70. Be7 {[%clk 0:00:04]}  Kg6 {[%clk 0:00:12]} 71. Ke5 {[%clk 0:00:04]}  Ng7 {[%clk 0:00:12]} 72. Bd8 {[%clk 0:00:04]}  Ne6 {[%clk 0:00:13]} 73. Be7 {[%clk 0:00:05]}  Nc7 {[%clk 0:00:13]} 74. Ke4 {[%clk 0:00:04]}  Ne6 {[%clk 0:00:14]} 75. Ke5 {[%clk 0:00:05]} 1/2-1/2


[Site "https://www.chess.com"]

[Event "Titled Tuesday Blitz February 15 Early 2022"]
[White "Shtyka, Sergey"]
[Black "Leve, Nitai"]
[WhiteFideId "4138465"]
[BlackFideId "2006898"]
[WhiteElo "2014"]
[BlackElo "2144"]
[Result "0-1"]
[Round "11"]
[TimeControl "180+1"]
[Date "2022.02.15"]
[WhiteClock "0:00:04"]
[BlackClock "0:00:08"]

1. e4 {[%clk 0:02:56]}  e6 {[%clk 0:02:54]} 2. Nf3 {[%clk 0:02:56]}  d5 {[%clk 0:02:53]} 3. e5 {[%clk 0:02:57]}  c5 {[%clk 0:02:52]} 4. b4 {[%clk 0:02:57]}  cxb4 {[%clk 0:02:53]} 5. a3 {[%clk 0:02:57]}  bxa3 {[%clk 0:02:54]} 6. Bxa3 {[%clk 0:02:58]}  Be7 {[%clk 0:02:39]} 7. d4 {[%clk 0:02:56]}  a6 {[%clk 0:02:39]} 8. Bd3 {[%clk 0:02:55]}  Nc6 {[%clk 0:02:40]} 9. O-O {[%clk 0:02:54]}  Nh6 {[%clk 0:02:38]} 10. Nc3 {[%clk 0:02:52]}  O-O {[%clk 0:02:25]} 11. Bxe7 {[%clk 0:02:51]}  Nxe7 {[%clk 0:02:22]} 12. Nb5 {[%clk 0:02:50]}  Nef5 {[%clk 0:02:21]} 13. c3 {[%clk 0:02:43]}  Bd7 {[%clk 0:02:17]} 14. Na3 {[%clk 0:02:42]}  Rc8 {[%clk 0:02:17]} 15. Qd2 {[%clk 0:02:40]}  Nh4 {[%clk 0:02:13]} 16. Ng5 {[%clk 0:02:29]}  N6f5 {[%clk 0:02:04]} 17. Rac1 {[%clk 0:02:09]}  h6 {[%clk 0:01:53]} 18. Nh3 {[%clk 0:02:08]}  f6 {[%clk 0:01:44]} 19. f4 {[%clk 0:02:04]}  fxe5 {[%clk 0:01:40]} 20. fxe5 {[%clk 0:02:03]}  Qb6 {[%clk 0:01:33]} 21. Nc2 {[%clk 0:02:01]}  Bb5 {[%clk 0:01:24]} 22. Rb1 {[%clk 0:01:56]}  Qa5 {[%clk 0:01:24]} 23. Bxb5 {[%clk 0:01:55]}  axb5 {[%clk 0:01:25]} 24. Nb4 {[%clk 0:01:50]}  Rc4 {[%clk 0:01:17]} 25. g3 {[%clk 0:01:45]}  Nxg3 {[%clk 0:01:01]} 26. hxg3 {[%clk 0:01:11]}  Nf3+ {[%clk 0:01:00]} 27. Rxf3 {[%clk 0:01:11]}  Rxf3 {[%clk 0:01:01]} 28. Nf4 {[%clk 0:01:06]}  Rxg3+ {[%clk 0:00:59]} 29. Kh2 {[%clk 0:01:06]}  Rgxc3 {[%clk 0:00:42]} 30. Ng2 {[%clk 0:00:44]}  Qd8 {[%clk 0:00:24]} 31. Qf4 {[%clk 0:00:31]}  Qa5 {[%clk 0:00:21]} 32. Nxd5 {[%clk 0:00:22]}  exd5 {[%clk 0:00:20]} 33. e6 {[%clk 0:00:23]}  Rc7 {[%clk 0:00:19]} 34. Rf1 {[%clk 0:00:19]}  Qa8 {[%clk 0:00:17]} 35. Nh4 {[%clk 0:00:15]}  Rc2+ {[%clk 0:00:16]} 36. Kh3 {[%clk 0:00:15]}  Qa3+ {[%clk 0:00:14]} 37. Rf3 {[%clk 0:00:14]}  Qe7 {[%clk 0:00:12]} 38. Qf5 {[%clk 0:00:06]}  Re2 {[%clk 0:00:09]} 39. Ng6 {[%clk 0:00:05]}  Qxe6 {[%clk 0:00:08]} 40. Kg4 {[%clk 0:00:05]}  Qxf5+ {[%clk 0:00:08]} 41. Rxf5 {[%clk 0:00:04]}  Re4+ {[%clk 0:00:09]} 42. Kh5 {[%clk 0:00:04]}  Rf7 {[%clk 0:00:10]} 43. Ne7+ {[%clk 0:00:03]}  Rexe7 {[%clk 0:00:09]} 44. Kg6 {[%clk 0:00:03]}  Re6+ {[%clk 0:00:08]} 45. Kh5 {[%clk 0:00:03]}  Rxf5+ {[%clk 0:00:08]} 46. Kg4 {[%clk 0:00:04]}  g6 {[%clk 0:00:08]} 0-1


[Site "https://www.chess.com"]

[Event "Titled Tuesday Blitz February 15 Early 2022"]
[White "Stanisz, Patryk"]
[Black "Kejzar, Petra"]
[WhiteFideId "1123106"]
[BlackFideId "14610213"]
[WhiteElo "1876"]
[BlackElo "2006"]
[Result "0-1"]
[Round "11"]
[TimeControl "180+1"]
[Date "2022.02.15"]
[WhiteClock "0:00:06"]
[BlackClock "0:00:04"]

1. Nf3 {[%clk 0:03:00]}  d5 {[%clk 0:02:56]} 2. c4 {[%clk 0:03:00]}  c6 {[%clk 0:02:49]} 3. g3 {[%clk 0:02:59]}  Nf6 {[%clk 0:02:48]} 4. Bg2 {[%clk 0:03:00]}  e6 {[%clk 0:02:46]} 5. O-O {[%clk 0:02:59]}  Be7 {[%clk 0:02:45]} 6. d4 {[%clk 0:02:59]}  O-O {[%clk 0:02:45]} 7. Nc3 {[%clk 0:02:57]}  Nbd7 {[%clk 0:02:41]} 8. b3 {[%clk 0:02:57]}  Qc7 {[%clk 0:02:41]} 9. Bb2 {[%clk 0:02:56]}  dxc4 {[%clk 0:02:40]} 10. bxc4 {[%clk 0:02:54]}  c5 {[%clk 0:02:35]} 11. d5 {[%clk 0:02:43]}  exd5 {[%clk 0:02:35]} 12. Nxd5 {[%clk 0:02:43]}  Nxd5 {[%clk 0:02:34]} 13. Qxd5 {[%clk 0:02:44]}  Bf6 {[%clk 0:02:29]} 14. Rab1 {[%clk 0:02:35]}  Bxb2 {[%clk 0:02:28]} 15. Rxb2 {[%clk 0:02:35]}  Nf6 {[%clk 0:02:28]} 16. Qe5 {[%clk 0:02:26]}  Qxe5 {[%clk 0:02:24]} 17. Nxe5 {[%clk 0:02:27]}  Re8 {[%clk 0:02:21]} 18. Nd3 {[%clk 0:02:20]}  Bg4 {[%clk 0:02:11]} 19. Bxb7 {[%clk 0:01:52]}  Rab8 {[%clk 0:02:07]} 20. Bf3 {[%clk 0:01:44]}  Bxf3 {[%clk 0:01:57]} 21. exf3 {[%clk 0:01:42]}  Rxb2 {[%clk 0:01:57]} 22. Nxb2 {[%clk 0:01:43]}  Re2 {[%clk 0:01:57]} 23. Rb1 {[%clk 0:01:25]}  Kf8 {[%clk 0:01:48]} 24. a4 {[%clk 0:01:21]}  Nd7 {[%clk 0:01:48]} 25. Nd3 {[%clk 0:01:13]}  Nb6 {[%clk 0:01:36]} 26. a5 {[%clk 0:00:54]}  Nxc4 {[%clk 0:01:36]} 27. Rb8+ {[%clk 0:00:54]}  Ke7 {[%clk 0:01:35]} 28. Rb7+ {[%clk 0:00:54]}  Kd6 {[%clk 0:01:22]} 29. Rxa7 {[%clk 0:00:51]}  Ra2 {[%clk 0:01:16]} 30. Rxf7 {[%clk 0:00:47]}  Nxa5 {[%clk 0:01:14]} 31. Rxg7 {[%clk 0:00:46]}  c4 {[%clk 0:01:15]} 32. Nf4 {[%clk 0:00:37]}  c3 {[%clk 0:01:14]} 33. Rxh7 {[%clk 0:00:27]}  c2 {[%clk 0:01:14]} 34. Nd3 {[%clk 0:00:27]}  Nc4 {[%clk 0:00:56]} 35. Rh6+ {[%clk 0:00:23]}  Kd7 {[%clk 0:00:50]} 36. Kg2 {[%clk 0:00:20]}  Ne5 {[%clk 0:00:40]} 37. Rh7+ {[%clk 0:00:19]}  Kd6 {[%clk 0:00:36]} 38. Rh6+ {[%clk 0:00:17]}  Ke7 {[%clk 0:00:33]} 39. Rh7+ {[%clk 0:00:03]}  Kf8 {[%clk 0:00:32]} 40. Nxe5 {[%clk 0:00:03]}  c1=Q {[%clk 0:00:30]} 41. Rf7+ {[%clk 0:00:01]}  Ke8 {[%clk 0:00:29]} 42. Rf5 {[%clk 0:00:02]}  Ra1 {[%clk 0:00:24]} 43. g4 {[%clk 0:00:01]}  Qf1+ {[%clk 0:00:21]} 44. Kg3 {[%clk 0:00:02]}  Qg1+ {[%clk 0:00:21]} 45. Kf4 {[%clk 0:00:02]}  Ra4+ {[%clk 0:00:21]} 46. Kg5 {[%clk 0:00:03]}  Qxh2 {[%clk 0:00:18]} 47. Ng6 {[%clk 0:00:04]}  Qxf2 {[%clk 0:00:11]} 48. Rf8+ {[%clk 0:00:03]}  Kd7 {[%clk 0:00:10]} 49. Rf7+ {[%clk 0:00:04]}  Kd6 {[%clk 0:00:09]} 50. f4 {[%clk 0:00:05]}  Qe3 {[%clk 0:00:09]} 51. Ne5 {[%clk 0:00:04]}  Rxf4 {[%clk 0:00:06]} 52. Rf6+ {[%clk 0:00:05]}  Rxf6+ {[%clk 0:00:05]} 53. Kxf6 {[%clk 0:00:06]}  Qxe5+ {[%clk 0:00:05]} 54. Kg6 {[%clk 0:00:06]}  Ke6 {[%clk 0:00:05]} 55. g5 {[%clk 0:00:06]}  Qf5+ {[%clk 0:00:05]} 56. Kh6 {[%clk 0:00:06]}  Kf7 {[%clk 0:00:05]} 57. Kh5 {[%clk 0:00:06]}  Qh3# {[%clk 0:00:04]} 0-1


[Site "https://www.chess.com"]

[Event "Titled Tuesday Blitz February 15 Early 2022"]
[White "Tasev, Dejan"]
[Black "Coto Mederos, Michel"]
[WhiteFideId "936618"]
[BlackFideId "3508528"]
[WhiteElo "2253"]
[BlackElo "2427"]
[Result "0-1"]
[Round "11"]
[TimeControl "180+1"]
[Date "2022.02.15"]
[WhiteClock "0:00:21"]
[BlackClock "0:00:04"]

1. e4 {[%clk 0:02:59]}  e5 {[%clk 0:02:57]} 2. Nf3 {[%clk 0:02:59]}  Nc6 {[%clk 0:02:57]} 3. Bb5 {[%clk 0:02:59]}  a6 {[%clk 0:02:57]} 4. Ba4 {[%clk 0:02:58]}  Nf6 {[%clk 0:02:56]} 5. O-O {[%clk 0:02:58]}  b5 {[%clk 0:02:56]} 6. Bb3 {[%clk 0:02:57]}  Bc5 {[%clk 0:02:57]} 7. c3 {[%clk 0:02:57]}  d6 {[%clk 0:02:57]} 8. d4 {[%clk 0:02:57]}  Bb6 {[%clk 0:02:58]} 9. h3 {[%clk 0:02:57]}  Bb7 {[%clk 0:02:55]} 10. Re1 {[%clk 0:02:57]}  h6 {[%clk 0:02:55]} 11. Be3 {[%clk 0:02:52]}  O-O {[%clk 0:02:47]} 12. Nbd2 {[%clk 0:02:51]}  Re8 {[%clk 0:02:35]} 13. d5 {[%clk 0:02:50]}  Ne7 {[%clk 0:02:33]} 14. Bxb6 {[%clk 0:02:46]}  cxb6 {[%clk 0:02:34]} 15. Nf1 {[%clk 0:02:46]}  Ng6 {[%clk 0:02:30]} 16. Ng3 {[%clk 0:02:46]}  Nf4 {[%clk 0:02:17]} 17. Nh2 {[%clk 0:02:40]}  g6 {[%clk 0:02:01]} 18. Bc2 {[%clk 0:02:36]}  h5 {[%clk 0:01:41]} 19. Ne2 {[%clk 0:02:32]}  Nxe2+ {[%clk 0:01:32]} 20. Rxe2 {[%clk 0:02:25]}  Nd7 {[%clk 0:01:32]} 21. Re3 {[%clk 0:02:24]}  Rc8 {[%clk 0:01:28]} 22. Rg3 {[%clk 0:02:23]}  Qh4 {[%clk 0:01:11]} 23. Nf3 {[%clk 0:02:12]}  Qf4 {[%clk 0:01:11]} 24. Ng5 {[%clk 0:02:00]}  Nf6 {[%clk 0:01:07]} 25. Qf3 {[%clk 0:01:14]}  h4 {[%clk 0:01:07]} 26. Qxf4 {[%clk 0:01:11]}  exf4 {[%clk 0:01:08]} 27. Rf3 {[%clk 0:01:11]}  Nh5 {[%clk 0:01:09]} 28. Re1 {[%clk 0:01:04]}  Re5 {[%clk 0:01:07]} 29. Nxf7 {[%clk 0:00:51]}  Kxf7 {[%clk 0:01:08]} 30. Rd3 {[%clk 0:00:50]}  b4 {[%clk 0:01:03]} 31. f3 {[%clk 0:00:49]}  bxc3 {[%clk 0:01:02]} 32. bxc3 {[%clk 0:00:48]}  g5 {[%clk 0:01:00]} 33. Rb1 {[%clk 0:00:46]}  b5 {[%clk 0:00:52]} 34. a4 {[%clk 0:00:45]}  Rc5 {[%clk 0:00:52]} 35. axb5 {[%clk 0:00:46]}  axb5 {[%clk 0:00:39]} 36. Rb4 {[%clk 0:00:40]}  Re7 {[%clk 0:00:35]} 37. Kf2 {[%clk 0:00:38]}  Rec7 {[%clk 0:00:33]} 38. Rb3 {[%clk 0:00:36]}  Nf6 {[%clk 0:00:34]} 39. Ke1 {[%clk 0:00:36]}  Nd7 {[%clk 0:00:34]} 40. Kd2 {[%clk 0:00:36]}  Ne5 {[%clk 0:00:34]} 41. Rd4 {[%clk 0:00:35]}  Nc4+ {[%clk 0:00:30]} 42. Kd3 {[%clk 0:00:35]}  Ne3 {[%clk 0:00:25]} 43. Rdb4 {[%clk 0:00:34]}  Nxg2 {[%clk 0:00:24]} 44. Kd2 {[%clk 0:00:32]}  Ba6 {[%clk 0:00:19]} 45. Bd3 {[%clk 0:00:32]}  Ne3 {[%clk 0:00:18]} 46. Bxb5 {[%clk 0:00:30]}  Bxb5 {[%clk 0:00:18]} 47. Rxb5 {[%clk 0:00:30]}  Rxb5 {[%clk 0:00:18]} 48. Rxb5 {[%clk 0:00:31]}  Nc4+ {[%clk 0:00:19]} 49. Kd3 {[%clk 0:00:30]}  Ne5+ {[%clk 0:00:19]} 50. Ke2 {[%clk 0:00:30]}  Rxc3 {[%clk 0:00:18]} 51. Rb7+ {[%clk 0:00:30]}  Kf6 {[%clk 0:00:18]} 52. Rb6 {[%clk 0:00:30]}  Re3+ {[%clk 0:00:14]} 53. Kd1 {[%clk 0:00:29]}  Nc4 {[%clk 0:00:08]} 54. Rc6 {[%clk 0:00:29]}  Rc3 {[%clk 0:00:08]} 55. Ke2 {[%clk 0:00:26]}  Ke5 {[%clk 0:00:08]} 56. Rc8 {[%clk 0:00:26]}  Re3+ {[%clk 0:00:06]} 57. Kf2 {[%clk 0:00:26]}  Nd2 {[%clk 0:00:05]} 58. Re8+ {[%clk 0:00:25]}  Kd4 {[%clk 0:00:04]} 59. Re6 {[%clk 0:00:25]}  Rxf3+ {[%clk 0:00:04]} 60. Ke2 {[%clk 0:00:26]}  Rd3 {[%clk 0:00:02]} 61. Rxd6 {[%clk 0:00:25]}  Nxe4 {[%clk 0:00:02]} 62. Re6 {[%clk 0:00:24]}  Nc3+ {[%clk 0:00:03]} 63. Kf2 {[%clk 0:00:24]}  Kxd5 {[%clk 0:00:03]} 64. Rg6 {[%clk 0:00:24]}  Ne4+ {[%clk 0:00:04]} 65. Ke2 {[%clk 0:00:24]}  Re3+ {[%clk 0:00:04]} 66. Kf1 {[%clk 0:00:24]}  Rf3+ {[%clk 0:00:04]} 67. Ke2 {[%clk 0:00:24]}  Re3+ {[%clk 0:00:04]} 68. Kf1 {[%clk 0:00:24]}  Ng3+ {[%clk 0:00:05]} 69. Kg2 {[%clk 0:00:25]}  Ke4 {[%clk 0:00:04]} 70. Rxg5 {[%clk 0:00:22]}  f3+ {[%clk 0:00:04]} 71. Kf2 {[%clk 0:00:21]}  Re2+ {[%clk 0:00:04]} 72. Kg1 {[%clk 0:00:21]}  Rg2# {[%clk 0:00:04]} 0-1


[Site "https://www.chess.com"]

[Event "Titled Tuesday Blitz February 15 Early 2022"]
[White "Tregubov, Pavel V."]
[Black "Moskvin, Anatoly"]
[WhiteFideId "4115341"]
[BlackFideId "24199990"]
[WhiteElo "2341"]
[BlackElo "2079"]
[Result "1-0"]
[Round "11"]
[TimeControl "180+1"]
[Date "2022.02.15"]
[WhiteClock "0:00:14"]
[BlackClock "0:00:02"]

1. e4 {[%clk 0:03:00]}  e5 {[%clk 0:02:59]} 2. Nf3 {[%clk 0:03:00]}  Nc6 {[%clk 0:03:00]} 3. Bb5 {[%clk 0:03:01]}  Nge7 {[%clk 0:03:00]} 4. O-O {[%clk 0:02:59]}  a6 {[%clk 0:03:00]} 5. Ba4 {[%clk 0:02:58]}  d6 {[%clk 0:03:00]} 6. d4 {[%clk 0:02:57]}  b5 {[%clk 0:03:00]} 7. Bb3 {[%clk 0:02:57]}  Nxd4 {[%clk 0:03:00]} 8. Nxd4 {[%clk 0:02:57]}  exd4 {[%clk 0:03:01]} 9. c3 {[%clk 0:02:57]}  dxc3 {[%clk 0:02:29]} 10. Nxc3 {[%clk 0:02:57]}  Be6 {[%clk 0:02:29]} 11. a4 {[%clk 0:02:50]}  b4 {[%clk 0:02:18]} 12. Nd5 {[%clk 0:02:50]}  a5 {[%clk 0:02:17]} 13. Bg5 {[%clk 0:02:40]}  c6 {[%clk 0:02:05]} 14. Ne3 {[%clk 0:02:23]}  Qd7 {[%clk 0:01:56]} 15. Rc1 {[%clk 0:01:40]}  Ng6 {[%clk 0:01:38]} 16. Bxe6 {[%clk 0:01:32]}  fxe6 {[%clk 0:01:34]} 17. Nc4 {[%clk 0:01:32]}  Qc7 {[%clk 0:00:32]} 18. Qh5 {[%clk 0:01:24]}  Be7 {[%clk 0:00:20]} 19. Bxe7 {[%clk 0:01:05]}  Qxe7 {[%clk 0:00:21]} 20. Rfd1 {[%clk 0:00:56]}  d5 {[%clk 0:00:10]} 21. exd5 {[%clk 0:00:53]}  cxd5 {[%clk 0:00:11]} 22. Nb6 {[%clk 0:00:33]}  Rd8 {[%clk 0:00:11]} 23. Nxd5 {[%clk 0:00:26]}  Rxd5 {[%clk 0:00:07]} 24. Rxd5 {[%clk 0:00:26]}  exd5 {[%clk 0:00:06]} 25. Qxd5 {[%clk 0:00:27]}  Qd7 {[%clk 0:00:03]} 26. Re1+ {[%clk 0:00:21]}  Ne7 {[%clk 0:00:03]} 27. Qa8+ {[%clk 0:00:15]}  Qd8 {[%clk 0:00:03]} 28. Qc6+ {[%clk 0:00:14]}  Kf8 {[%clk 0:00:02]} 29. Qf3+ {[%clk 0:00:14]} 1-0


[Site "https://www.chess.com"]